fUSD/lending_fUSD_20240426
["ID","MTS","AMOUNT","RATE_DAILY","PERIOD"]
[323602381,1714104651629,-500.0,0.0001178,2]
[323602382,1714104651639,-373.2741753,0.0001178,2]
[323602383,1714104651649,-500.0,0.0001178,2]
[323602384,1714104651659,-500.0,0.0001178,2]
[323602385,1714104651668,-535.07,0.0001178,2]
[323602386,1714104651678,-560.88,0.0001178,2]
[323602387,1714104651688,-208.19929918,0.0001178,2]
[323602388,1714104651697,-500.0,0.0001178,2]
[323602389,1714104651707,-607.61,0.0001178,2]
[323602390,1714104651717,-168.07512654,0.0001178,2]
[323602391,1714104651728,-500.0,0.0001178,2]
[323602392,1714104651738,-500.0,0.0001178,2]
[323602393,1714104651748,-500.0,0.0001178,2]
[323602394,1714104651757,-500.0,0.0001178,2]
[323602395,1714104651767,-500.0,0.0001178,2]
[323602396,1714104651777,-500.0,0.0001178,2]
[323602397,1714104651787,-500.0,0.0001178,2]
[323602398,1714104651797,-500.0,0.0001178,2]
[323602399,1714104651807,-500.0,0.0001178,2]
[323602400,1714104651817,-500.0,0.0001178,2]
[323602401,1714104651826,-196.69,0.0001178,2]
[323602402,1714104651836,-500.0,0.0001178,2]
[323602403,1714104651845,-500.0,0.0001178,2]
[323602404,1714104651855,-500.0,0.0001178,2]
[323602405,1714104651864,-500.0,0.0001178,2]
[323602406,1714104651874,-500.0,0.0001178,2]
[323602407,1714104651884,-500.0,0.0001178,2]
[323602408,1714104651893,-500.0,0.0001178,2]
[323602409,1714104651903,-500.0,0.0001178,2]
[323602410,1714104651912,-500.0,0.0001178,2]
[323602411,1714104651922,-500.0,0.0001178,2]
[323602412,1714104651934,-500.0,0.0001178,2]
[323602413,1714104651944,-500.0,0.0001178,2]
[323602414,1714104651953,-500.0,0.0001178,2]
[323602415,1714104651963,-500.0,0.0001178,2]
[323602416,1714104651973,-500.0,0.0001178,2]
[323602417,1714104651984,-521.36,0.0001178,2]
[323602418,1714104651993,-500.0,0.0001178,2]
[323602419,1714104652002,-319.40351085,0.0001178,2]
[323602420,1714104652013,-500.0,0.0001178,2]
[323602421,1714104652024,-500.0,0.0001178,2]
[323602422,1714104652033,-637.21,0.0001178,2]
[323602423,1714104652045,-526.28,0.0001178,2]
[323602424,1714104652055,-500.0,0.0001178,2]
[323602425,1714104652065,-500.0,0.0001178,2]
[323602426,1714104652074,-500.0,0.0001178,2]
[323602427,1714104652084,-500.0,0.0001178,2]
[323602428,1714104652093,-574.55,0.0001178,2]
[323602429,1714104652102,-500.0,0.0001178,2]
[323602430,1714104652110,-500.0,0.0001178,2]
[323602431,1714104652120,-500.0,0.0001178,2]
[323602432,1714104652129,-500.0,0.0001178,2]
[323602433,1714104652139,-500.0,0.0001178,2]
[323602434,1714104652148,-500.0,0.0001178,2]
[323602435,1714104652158,-356.88801384,0.0001178,2]
[323602436,1714104652167,-500.0,0.0001178,2]
[323602437,1714104652177,-683.13,0.0001178,2]
[323602438,1714104652186,-500.0,0.0001178,2]
[323602439,1714104652196,-550.41,0.0001178,2]
[323602440,1714104652205,-500.0,0.0001178,2]
[323602441,1714104652215,-500.0,0.0001178,2]
[323602442,1714104652225,-500.0,0.0001178,2]
[323602443,1714104652235,-500.0,0.0001178,2]
[323602444,1714104652244,-500.0,0.0001178,2]
[323602445,1714104652254,-500.0,0.0001178,2]
[323602446,1714104652263,-500.0,0.0001178,2]
[323602447,1714104652273,-500.0,0.0001178,2]
[323602448,1714104652283,-500.0,0.0001178,2]
[323602449,1714104652293,-500.0,0.0001178,2]
[323602450,1714104652302,-500.0,0.0001178,2]
[323602451,1714104652312,-519.67,0.0001178,2]
[323602452,1714104652321,-906.69,0.0001178,2]
[323602453,1714104652331,-500.0,0.0001178,2]
[323602454,1714104652341,-500.0,0.0001178,2]
[323602455,1714104652351,-500.0,0.0001178,2]
[323602456,1714104652360,-500.0,0.0001178,2]
[323602457,1714104652370,-500.0,0.0001178,2]
[323602458,1714104652380,-653.07,0.0001178,2]
[323602459,1714104652389,-500.0,0.0001178,2]
[323602460,1714104652399,-2208.5,0.0001178,2]
[323602461,1714104652409,-500.0,0.0001178,2]
[323602462,1714104652419,-500.0,0.0001178,2]
[323602463,1714104652429,-845.04,0.0001178,2]
[323602464,1714104652438,-639.83,0.0001178,2]
[323602465,1714104652448,-3123.63,0.0001178,2]
[323602466,1714104652457,-1238.36,0.0001178,2]
[323602467,1714104652467,-500.0,0.0001178,2]
[323602468,1714104652476,-500.0,0.0001178,2]
[323602469,1714104652487,-500.0,0.0001178,2]
[323602470,1714104652498,-500.0,0.0001178,2]
[323602471,1714104652507,-500.0,0.0001178,2]
[323602472,1714104652518,-4631.13,0.0001178,2]
[323602473,1714104652527,-500.0,0.0001178,2]
[323602474,1714104652537,-555.26,0.0001178,2]
[323602475,1714104652546,-500.0,0.0001178,2]
[323602476,1714104652555,-500.0,0.0001178,2]
[323602477,1714104652565,-500.0,0.0001178,2]
[323602478,1714104652574,-500.0,0.0001178,2]
[323602479,1714104652584,-500.0,0.0001178,2]
[323602480,1714104652593,-587.04,0.0001178,2]
[323602481,1714104652603,-500.0,0.0001178,2]
[323602482,1714104652612,-1703.74,0.0001178,2]
[323602483,1714104652622,-500.0,0.0001178,2]
[323602484,1714104652631,-500.0,0.0001178,2]
[323602485,1714104652641,-638.3,0.0001178,2]
[323602486,1714104652650,-1493.86,0.0001178,2]
[323602487,1714104652660,-764.69,0.0001178,2]
[323602488,1714104652670,-811.46,0.0001178,2]
[323602489,1714104652680,-500.0,0.0001178,2]
[323602490,1714104652689,-500.0,0.0001178,2]
[323602491,1714104652699,-512.16,0.0001178,2]
[323602492,1714104652708,-500.0,0.0001178,2]
[323602493,1714104652718,-500.0,0.0001178,2]
[323602494,1714104652729,-648.89,0.0001178,2]
[323602495,1714104652738,-500.0,0.0001178,2]
[323602496,1714104652748,-695.36,0.0001178,2]
[323602497,1714104652757,-2871.51,0.0001178,2]
[323602498,1714104652766,-500.0,0.0001178,2]
[323602499,1714104652776,-624.3,0.0001178,2]
[323602500,1714104652785,-500.0,0.0001178,2]
[323602501,1714104652794,-572.00633654,0.0001178,2]
[323602502,1714104652804,-708.99534153,0.0001178,2]
[323602503,1714104652814,-500.0,0.0001178,2]
[323602504,1714104652824,-928.75,0.0001178,2]
[323602505,1714104652833,-500.0,0.0001178,2]
[323602506,1714104652842,-500.0,0.0001178,2]
[323602507,1714104652851,-912.95,0.0001178,2]
[323602508,1714104652861,-500.0,0.0001178,2]
[323602509,1714104652870,-875.87,0.0001178,2]
[323602510,1714104652880,-287.62886503,0.0001178,2]
[323602511,1714104652889,-500.0,0.0001178,2]
[323602512,1714104652899,-500.0,0.0001178,2]
[323602513,1714104652908,-500.0,0.0001178,2]
[323602514,1714104652918,-500.0,0.0001178,2]
[323602515,1714104652928,-735.53,0.0001178,2]
[323602516,1714104652939,-995.7,0.0001178,2]
[323602517,1714104652948,-500.0,0.0001178,2]
[323602518,1714104652958,-500.0,0.0001178,2]
[323602519,1714104652967,-1807.22,0.0001178,2]
[323602520,1714104652978,-221.18329538,0.0001178,2]
[323602521,1714104652987,-2540.24,0.0001178,2]
[323602522,1714104652997,-500.0,0.0001178,2]
[323602523,1714104653007,-301.05966026,0.0001178,2]
[323602524,1714104653017,-1143.07,0.0001178,2]
[323602525,1714104653026,-526.61,0.0001178,2]
[323602526,1714104653036,-173.71,0.0001178,2]
[323602527,1714104653045,-1586.47,0.0001178,2]
[323602528,1714104653055,-560.35,0.0001178,2]
[323602529,1714104653064,-500.0,0.0001178,2]
[323602530,1714104653074,-218.57798329,0.0001178,2]
[323602531,1714104653083,-2252.07,0.0001178,2]
[323602532,1714104653093,-813.64,0.0001178,2]
[323602533,1714104653102,-851.71,0.0001178,2]
[323602534,1714104653112,-500.0,0.0001178,2]
[323602535,1714104653122,-736.79,0.0001178,2]
[323602536,1714104653132,-500.0,0.0001178,2]
[323602537,1714104653142,-500.0,0.0001178,2]
[323602538,1714104653152,-500.0,0.0001178,2]
[323602539,1714104653161,-1923.55,0.0001178,2]
[323602540,1714104653170,-648.37,0.0001178,2]
[323602541,1714104653180,-1869.69,0.0001178,2]
[323602542,1714104653190,-500.0,0.0001178,2]
[323602543,1714104653199,-500.0,0.0001178,2]
[323602544,1714104653209,-3610.14,0.0001178,2]
[323602545,1714104653218,-500.0,0.0001178,2]
[323602546,1714104653227,-712.3,0.0001178,2]
[323602547,1714104653237,-515.24,0.0001178,2]
[323602548,1714104653246,-2042.6,0.0001178,2]
[323602549,1714104653255,-500.0,0.0001178,2]
[323602550,1714104653264,-515.61,0.0001178,2]
[323602551,1714104653274,-745.18,0.0001178,2]
[323602552,1714104653283,-816.37,0.0001178,2]
[323602553,1714104653292,-735.45,0.0001178,2]
[323602554,1714104653301,-500.0,0.0001178,2]
[323602555,1714104653310,-500.0,0.0001178,2]
[323602556,1714104653320,-500.0,0.0001178,2]
[323602557,1714104653330,-595.35625009,0.0001178,2]
[323602558,1714104653339,-6554.68,0.0001178,2]
[323602559,1714104653348,-500.0,0.0001178,2]
[323602560,1714104653357,-1575.69,0.0001178,2]
[323602561,1714104653366,-500.0,0.0001178,2]
[323602562,1714104653375,-500.0,0.0001178,2]
[323602563,1714104653384,-500.0,0.0001178,2]
[323602564,1714104653394,-735.62,0.0001178,2]
[323602565,1714104653403,-500.0,0.0001178,2]
[323602566,1714104653412,-500.0,0.0001178,2]
[323602567,1714104653421,-500.0,0.0001178,2]
[323602568,1714104653431,-500.0,0.0001178,2]
[323602569,1714104653440,-510.67,0.0001178,2]
[323602570,1714104653449,-500.0,0.0001178,2]
[323602571,1714104653459,-527.07,0.0001178,2]
[323602572,1714104653468,-519.06,0.0001178,2]
[323602573,1714104653478,-500.0,0.0001178,2]
[323602574,1714104653488,-7954.63,0.0001178,2]
[323602575,1714104653497,-174.5093438,0.0001178,2]
[323602576,1714104653506,-500.0,0.0001178,2]
[323602577,1714104653516,-500.0,0.0001178,2]
[323602578,1714104653525,-500.0,0.0001178,2]
[323602579,1714104653534,-579.28,0.0001178,2]
[323602580,1714104653543,-500.0,0.0001178,2]
[323602581,1714104653552,-500.0,0.0001178,2]
[323602582,1714104653562,-7053.5751938,0.00011791,2]
[323602583,1714104653571,-20047.44259182,0.00011814,2]
[323602584,1714104653580,-859.6,0.00011837,2]
[323602585,1714104653589,-161.9,0.0001189,2]
[323602586,1714104653599,-7053.5751938,0.00011902,2]
[323602587,1714104653608,-1000.0,0.00011904,2]
[323602588,1714104653617,-3007.91786,0.00011946,2]
[323602589,1714104653626,-212.1,0.00011946,2]
[323602590,1714104653635,-150.086,0.00011946,2]
[323602591,1714104653645,-1394.0,0.00011946,2]
[323602592,1714104653654,-970.0,0.00011946,2]
[323602593,1714104653663,-462.0,0.00011946,2]
[323602594,1714104653673,-2297.0,0.00011946,2]
[323602595,1714104653682,-542.0,0.00011946,2]
[323602596,1714104653691,-1228.0,0.00011946,2]
[323602597,1714104653701,-1257.0,0.00011946,2]
[323602598,1714104653710,-258.11,0.00011946,2]
[323602599,1714104653719,-439.255,0.00011946,2]
[323602600,1714104653729,-1859.0,0.00011946,2]
[323602601,1714104653738,-610.0,0.00011946,2]
[323602602,1714104653750,-810.197,0.00011946,2]
[323602603,1714104653759,-3122.0,0.00011946,2]
[323602604,1714104653768,-1478.191,0.00011946,2]
[323602605,1714104653778,-2446.0,0.00011946,2]
[323602606,1714104653787,-150.641,0.00011946,2]
[323602607,1714104653795,-420.0,0.00011946,2]
[323602608,1714104653805,-150.492,0.00011946,2]
[323602609,1714104653814,-1641.0,0.00011946,2]
[323602610,1714104653823,-445.02,0.00011946,2]
[323602611,1714104653832,-214.0,0.00011946,2]
[323602612,1714104653841,-1140.0,0.00011946,2]
[323602613,1714104653850,-1236.0,0.00011965,2]
[323602614,1714104653859,-1000.0,0.00011977,2]
[323602615,1714104653869,-500.0,0.00011977,2]
[323602616,1714104653878,-63020.16439157,0.00012,2]
[323602617,1714104653887,-3071.20810051,0.00012,2]
[323602618,1714104653896,-5000.0,0.00012,2]
[323602619,1714104653906,-11416.92232108,0.00012,2]
[323602620,1714104653916,-2750.0,0.00012,3]
[323602621,1714104653926,-161.9,0.00012,2]
[323602622,1714104653938,-1000.0,0.00012,2]
[323602623,1714104653948,-223.0,0.00012,2]
[323602624,1714104653957,-352.0,0.00012,2]
[323602625,1714104653966,-150.0,0.00012002,2]
[323602626,1714104653976,-7053.5751938,0.00012013,2]
[323602627,1714104653986,-150.0,0.00012016,2]
[323602628,1714104653995,-150.0,0.00012018,2]
[323602629,1714104654004,-150.0,0.0001202,2]
[323602630,1714104654015,-150.0,0.00012024,2]
[323602631,1714104654025,-150.0,0.00012027,2]
[323602632,1714104654034,-150.0,0.0001203,2]
[323602633,1714104654043,-167.82,0.00012033,2]
[323602634,1714104654052,-150.0,0.00012033,2]
[323602635,1714104654061,-150.0,0.00012035,2]
[323602636,1714104654072,-1000.0,0.0001205,2]
[323602637,1714104654081,-500.0,0.0001205,2]
[323602638,1714104654091,-150.0,0.00012052,2]
[323602639,1714104654102,-500.0,0.00012054,2]
[323602640,1714104654111,-500.0,0.00012054,2]
[323602641,1714104654121,-500.0,0.00012054,2]
[323602642,1714104654130,-500.0,0.00012054,2]
[323602643,1714104654140,-500.0,0.00012054,2]
[323602644,1714104654150,-500.0,0.00012054,2]
[323602645,1714104654159,-500.0,0.00012054,2]
[323602646,1714104654168,-562.05,0.00012054,2]
[323602647,1714104654177,-500.0,0.00012054,2]
[323602648,1714104654186,-500.0,0.00012054,2]
[323602649,1714104654196,-939.18,0.00012054,2]
[323602650,1714104654205,-626.22098282,0.00012054,2]
[323602651,1714104654217,-500.0,0.00012054,2]
[323602652,1714104654227,-500.0,0.00012054,2]
[323602653,1714104654236,-500.0,0.00012054,2]
[323602654,1714104654246,-500.0,0.00012054,2]
[323602655,1714104654255,-500.0,0.00012054,2]
[323602656,1714104654266,-500.0,0.00012054,2]
[323602657,1714104654276,-500.0,0.00012054,2]
[323602658,1714104654286,-500.0,0.00012054,2]
[323602659,1714104654300,-500.0,0.00012054,2]
[323602660,1714104654309,-500.0,0.00012054,2]
[323602661,1714104654318,-384.63004892,0.00012054,2]
[323602662,1714104654327,-500.0,0.00012054,2]
[323602663,1714104654336,-500.0,0.00012054,2]
[323602664,1714104654345,-500.0,0.00012054,2]
[323602665,1714104654357,-632.99711596,0.00012054,2]
[323602666,1714104654366,-500.0,0.00012054,2]
[323602667,1714104654376,-500.0,0.00012054,2]
[323602668,1714104654385,-500.0,0.00012054,2]
[323602669,1714104654396,-500.0,0.00012054,2]
[323602670,1714104654406,-500.0,0.00012054,2]
[323602671,1714104654416,-500.0,0.00012054,2]
[323602672,1714104654427,-500.0,0.00012054,2]
[323602673,1714104654438,-500.0,0.00012054,2]
[323602674,1714104654448,-535.07,0.00012054,2]
[323602675,1714104654456,-560.88,0.00012054,2]
[323602676,1714104654468,-500.0,0.00012054,2]
[323602677,1714104654482,-607.61,0.00012054,2]
[323602678,1714104654495,-500.0,0.00012054,2]
[323602679,1714104654507,-500.0,0.00012054,2]
[323602680,1714104654520,-500.0,0.00012054,2]
[323602681,1714104654532,-500.0,0.00012054,2]
[323602682,1714104654545,-500.0,0.00012054,2]
[323602683,1714104654556,-500.0,0.00012054,2]
[323602684,1714104654568,-500.0,0.00012054,2]
[323602685,1714104654579,-500.0,0.00012054,2]
[323602686,1714104654591,-500.0,0.00012054,2]
[323602687,1714104654602,-500.0,0.00012054,2]
[323602688,1714104654613,-196.69,0.00012054,2]
[323602689,1714104654624,-500.0,0.00012054,2]
[323602690,1714104654638,-500.0,0.00012054,2]
[323602691,1714104654650,-500.0,0.00012054,2]
[323602692,1714104654663,-500.0,0.00012054,2]
[323602693,1714104654675,-500.0,0.00012054,2]
[323602694,1714104654687,-500.0,0.00012054,2]
[323602695,1714104654699,-500.0,0.00012054,2]
[323602696,1714104654709,-500.0,0.00012054,2]
[323602697,1714104654719,-500.0,0.00012054,2]
[323602698,1714104654731,-500.0,0.00012054,2]
[323602699,1714104654742,-500.0,0.00012054,2]
[323602700,1714104654753,-500.0,0.00012054,2]
[323602701,1714104654764,-500.0,0.00012054,2]
[323602702,1714104654775,-500.0,0.00012054,2]
[323602703,1714104654787,-500.0,0.00012054,2]
[323602704,1714104654798,-521.36,0.00012054,2]
[323602705,1714104654809,-500.0,0.00012054,2]
[323602706,1714104654820,-500.0,0.00012054,2]
[323602707,1714104654832,-500.0,0.00012054,2]
[323602708,1714104654843,-637.21,0.00012054,2]
[323602709,1714104654853,-526.28,0.00012054,2]
[323602710,1714104654863,-500.0,0.00012054,2]
[323602711,1714104654874,-500.0,0.00012054,2]
[323602712,1714104654885,-500.0,0.00012054,2]
[323602713,1714104654898,-500.0,0.00012054,2]
[323602714,1714104654910,-574.55,0.00012054,2]
[323602715,1714104654921,-502.09396587,0.00012054,2]
[323602716,1714104654935,-500.0,0.00012054,2]
[323602717,1714104654947,-500.0,0.00012054,2]
[323602718,1714104654959,-500.0,0.00012054,2]
[323602719,1714104654970,-315.44050534,0.00012054,2]
[323602720,1714104654982,-500.0,0.00012054,2]
[323602721,1714104654993,-500.0,0.00012054,2]
[323602722,1714104655003,-683.13,0.00012054,2]
[323602723,1714104655017,-500.0,0.00012054,2]
[323602724,1714104655029,-550.41,0.00012054,2]
[323602725,1714104655043,-500.0,0.00012054,2]
[323602726,1714104655055,-500.0,0.00012054,2]
[323602727,1714104655067,-500.0,0.00012054,2]
[323602728,1714104655081,-415.12236733,0.00012054,2]
[323602729,1714104655094,-500.0,0.00012054,2]
[323602730,1714104655107,-500.0,0.00012054,2]
[323602731,1714104655119,-500.0,0.00012054,2]
[323602732,1714104655132,-500.0,0.00012054,2]
[323602733,1714104655142,-500.0,0.00012054,2]
[323602734,1714104655154,-606.92,0.00012054,2]
[323602735,1714104655163,-500.0,0.00012054,2]
[323602736,1714104655173,-519.67,0.00012054,2]
[323602737,1714104655183,-906.69,0.00012054,2]
[323602738,1714104655193,-500.0,0.00012054,2]
[323602739,1714104655204,-500.0,0.00012054,2]
[323602740,1714104655215,-500.0,0.00012054,2]
[323602741,1714104655226,-500.0,0.00012054,2]
[323602742,1714104655237,-500.0,0.00012054,2]
[323602743,1714104655248,-653.07,0.00012054,2]
[323602744,1714104655260,-500.0,0.00012054,2]
[323602745,1714104655272,-2208.5,0.00012054,2]
[323602746,1714104655283,-500.0,0.00012054,2]
[323602747,1714104655294,-500.0,0.00012054,2]
[323602748,1714104655304,-845.04,0.00012054,2]
[323602749,1714104655314,-639.83,0.00012054,2]
[323602750,1714104655325,-3123.63,0.00012054,2]
[323602751,1714104655336,-1238.36,0.00012054,2]
[323602752,1714104655347,-500.0,0.00012054,2]
[323602753,1714104655358,-500.0,0.00012054,2]
[323602754,1714104655369,-500.0,0.00012054,2]
[323602755,1714104655379,-500.0,0.00012054,2]
[323602756,1714104655390,-500.0,0.00012054,2]
[323602757,1714104655402,-4631.13,0.00012054,2]
[323602758,1714104655413,-256.21824189,0.00012054,2]
[323602759,1714104655423,-555.26,0.00012054,2]
[323602760,1714104655435,-500.0,0.00012054,2]
[323602761,1714104655446,-500.0,0.00012054,2]
[323602762,1714104655458,-500.0,0.00012054,2]
[323602763,1714104655469,-500.0,0.00012054,2]
[323602764,1714104655480,-500.0,0.00012054,2]
[323602765,1714104655491,-587.04,0.00012054,2]
[323602766,1714104655502,-500.0,0.00012054,2]
[323602767,1714104655514,-1703.74,0.00012054,2]
[323602768,1714104655524,-500.0,0.00012054,2]
[323602769,1714104655535,-500.0,0.00012054,2]
[323602770,1714104655545,-638.3,0.00012054,2]
[323602771,1714104655557,-1493.86,0.00012054,2]
[323602772,1714104655568,-764.69,0.00012054,2]
[323602773,1714104655579,-811.46,0.00012054,2]
[323602774,1714104655590,-500.0,0.00012054,2]
[323602775,1714104655601,-500.0,0.00012054,2]
[323602776,1714104655611,-512.16,0.00012054,2]
[323602777,1714104655621,-500.0,0.00012054,2]
[323602778,1714104655632,-500.0,0.00012054,2]
[323602779,1714104655642,-648.89,0.00012054,2]
[323602780,1714104655654,-500.0,0.00012054,2]
[323602781,1714104655666,-695.36,0.00012054,2]
[323602782,1714104655677,-2871.51,0.00012054,2]
[323602783,1714104655687,-500.0,0.00012054,2]
[323602784,1714104655698,-624.3,0.00012054,2]
[323602785,1714104655709,-500.0,0.00012054,2]
[323602786,1714104655719,-500.0,0.00012054,2]
[323602787,1714104655730,-928.75,0.00012054,2]
[323602788,1714104655740,-500.0,0.00012054,2]
[323602789,1714104655751,-500.0,0.00012054,2]
[323602790,1714104655762,-912.95,0.00012054,2]
[323602791,1714104655773,-500.0,0.00012054,2]
[323602792,1714104655783,-875.87,0.00012054,2]
[323602793,1714104655794,-500.0,0.00012054,2]
[323602794,1714104655805,-500.0,0.00012054,2]
[323602795,1714104655819,-500.0,0.00012054,2]
[323602796,1714104655830,-500.0,0.00012054,2]
[323602797,1714104655841,-735.53,0.00012054,2]
[323602798,1714104655851,-995.7,0.00012054,2]
[323602799,1714104655862,-500.0,0.00012054,2]
[323602800,1714104655873,-500.0,0.00012054,2]
[323602801,1714104655884,-1807.22,0.00012054,2]
[323602802,1714104655894,-2540.24,0.00012054,2]
[323602803,1714104655905,-500.0,0.00012054,2]
[323602804,1714104655915,-1143.07,0.00012054,2]
[323602805,1714104655926,-526.61,0.00012054,2]
[323602806,1714104655940,-1586.47,0.00012054,2]
[323602807,1714104655950,-560.35,0.00012054,2]
[323602808,1714104655961,-500.0,0.00012054,2]
[323602809,1714104655971,-2252.07,0.00012054,2]
[323602810,1714104655983,-813.64,0.00012054,2]
[323602811,1714104655993,-851.71,0.00012054,2]
[323602812,1714104656004,-500.0,0.00012054,2]
[323602813,1714104656015,-500.0,0.00012054,2]
[323602814,1714104656027,-736.79,0.00012054,2]
[323602815,1714104656038,-500.0,0.00012054,2]
[323602816,1714104656050,-500.0,0.00012054,2]
[323602817,1714104656061,-1923.55,0.00012054,2]
[323602818,1714104656072,-648.37,0.00012054,2]
[323602819,1714104656082,-1869.69,0.00012054,2]
[323602820,1714104656093,-500.0,0.00012054,2]
[323602821,1714104656104,-536.79145879,0.00012054,2]
[323602822,1714104656115,-3610.14,0.00012054,2]
[323602823,1714104656125,-500.0,0.00012054,2]
[323602824,1714104656137,-712.3,0.00012054,2]
[323602825,1714104656148,-515.24,0.00012054,2]
[323602826,1714104656159,-2042.6,0.00012054,2]
[323602827,1714104656170,-500.0,0.00012054,2]
[323602828,1714104656180,-515.61,0.00012054,2]
[323602829,1714104656191,-745.18,0.00012054,2]
[323602830,1714104656202,-816.37,0.00012054,2]
[323602831,1714104656212,-735.45,0.00012054,2]
[323602832,1714104656222,-500.0,0.00012054,2]
[323602833,1714104656234,-500.0,0.00012054,2]
[323602834,1714104656245,-500.0,0.00012054,2]
[323602835,1714104656255,-6554.68,0.00012054,2]
[323602836,1714104656265,-500.0,0.00012054,2]
[323602837,1714104656276,-1575.69,0.00012054,2]
[323602838,1714104656286,-500.0,0.00012054,2]
[323602839,1714104656296,-500.0,0.00012054,2]
[323602840,1714104656306,-500.0,0.00012054,2]
[323602841,1714104656317,-735.62,0.00012054,2]
[323602842,1714104656328,-500.0,0.00012054,2]
[323602843,1714104656338,-500.0,0.00012054,2]
[323602844,1714104656351,-500.0,0.00012054,2]
[323602845,1714104656362,-510.67,0.00012054,2]
[323602846,1714104656375,-500.0,0.00012054,2]
[323602847,1714104656386,-527.07,0.00012054,2]
[323602848,1714104656397,-519.06,0.00012054,2]
[323602849,1714104656408,-500.0,0.00012054,2]
[323602850,1714104656419,-7954.63,0.00012054,2]
[323602851,1714104656430,-500.0,0.00012054,2]
[323602852,1714104656443,-500.0,0.00012054,2]
[323602853,1714104656455,-500.0,0.00012054,2]
[323602854,1714104656466,-579.28,0.00012054,2]
[323602855,1714104656476,-500.0,0.00012054,2]
[323602856,1714104656488,-500.0,0.00012054,2]
[323602857,1714104656498,-150.0,0.00012064,2]
[323602858,1714104656508,-150.0,0.00012065,2]
[323602859,1714104656519,-150.0,0.00012079,2]
[323602860,1714104656529,-150.0,0.00012081,2]
[323602861,1714104656541,-150.0,0.00012083,2]
[323602862,1714104656553,-150.0,0.00012086,2]
[323602863,1714104656564,-150.0,0.00012091,2]
[323602864,1714104656577,-150.0,0.00012094,2]
[323602865,1714104656588,-150.0,0.00012095,2]
[323602866,1714104656602,-246.58960536,0.00012096,2]
[323602867,1714104656612,-150.0,0.00012097,2]
[323602868,1714104656624,-150.0,0.00012098,2]
[323602869,1714104656634,-837.88,0.00012099,2]
[323602870,1714104656645,-529.7,0.00012099,2]
[323602871,1714104656657,-300.0,0.00012099,2]
[323602872,1714104656668,-150.0,0.00012108,2]
[323602873,1714104656678,-150.0,0.00012109,2]
[323602874,1714104656689,-150.0,0.00012111,2]
[323602875,1714104656699,-150.0,0.00012112,2]
[323602876,1714104656710,-150.0,0.00012115,2]
[323602877,1714104656721,-151.4,0.00012117,2]
[323602878,1714104656732,-150.62,0.00012117,2]
[323602879,1714104656742,-419.46,0.00012117,2]
[323602880,1714104656752,-401.28,0.00012117,2]